fUSD/lending_fUSD_20251013
["ID","MTS","AMOUNT","RATE_DAILY","PERIOD"]
[391092442,1760325032452,-258.6541329,0.000149,2]
[391092443,1760325032460,-26655.66877804,0.000149,2]
[391092451,1760325039701,-578.51776381,0.000149,2]
[391092452,1760325040521,-3711.37964551,0.000149,2]
[391092453,1760325040532,-2455.91561264,0.000149,2]
[391092454,1760325040541,-155.17195684,0.000149,2]
[391092455,1760325040550,-401.95808402,0.000149,2]
[391092456,1760325040559,-1000.0,0.000149,2]
[391092457,1760325040568,-2000.0,0.00014924,2]
[391092458,1760325040577,-150.0,0.00014924,2]
[391092459,1760325040586,-195.0,0.00014924,2]
[391092460,1760325040595,-250.0,0.00014924,2]
[391092461,1760325040604,-200.0,0.0001495,2]
[391092462,1760325040613,-159.01951203,0.0001495,2]
[391092463,1760325040622,-509.89880024,0.0001495,2]
[391092464,1760325040631,-500.0,0.00014973,2]
[391092465,1760325040641,-500.0,0.00014973,2]
[391092466,1760325040650,-500.0,0.00014973,2]
[391092467,1760325040660,-300.0,0.00014979,2]
[391092468,1760325040669,-151.0,0.00014997,2]
[391092469,1760325040679,-151.0,0.00014997,2]
[391092470,1760325040689,-151.0,0.00014997,2]
[391092471,1760325040697,-150.87871859,0.00014999,2]
[391092472,1760325040707,-11648.09148114,0.00015,2]
[391092476,1760325042782,-1135.74813428,0.00015,2]
[391092477,1760325042796,-3486.49937393,0.00015,2]
[391092478,1760325043097,-292.76256828,0.00015,2]
[391092483,1760325045836,-161.89078248,0.000149,2]
[391092484,1760325045846,-537.54583362,0.00015,2]
[391092485,1760325045983,-381.46641163,0.00015,2]
[391092486,1760325045996,-1304.75620002,0.00015,2]
[391092490,1760325067626,164.0,0.00027397,120]
[391092492,1760325622177,156.53,6.813e-05,2]
[391092493,1760325622781,156.53,7.3e-05,2]
[391092494,1760325622857,156.53,7.787e-05,2]
[391092495,1760325622922,156.53,8.273e-05,2]
[391092496,1760325622995,156.53,8.76e-05,2]
[391092497,1760325623192,156.53,9.247e-05,2]
[391092498,1760325623388,156.53,9.733e-05,2]
[391092499,1760325623599,156.53,0.0001022,2]
[391092500,1760325623827,156.53,0.00010707,2]
[391092501,1760325624030,156.53,0.00011193,2]
[391092502,1760325624224,156.53,0.0001168,2]
[391092503,1760325624442,156.53,0.00012166,2]
[391092504,1760325632537,-156.53,0.00012653,2]
[391092505,1760325632563,-78.30251043,0.0001314,2]
[391092506,1760325856878,-78.22748957,0.0001314,2]
[391092507,1760325856899,-582.55679207,0.00013209,2]
[391092508,1760325860294,-161.95133888,0.00013209,2]
[391092509,1760325863136,-265.16748973,0.00013209,2]
[391092510,1760325865167,-355.34006771,0.00013209,2]
[391092511,1760325868794,-259.278213,0.00013209,2]
[391092512,1760325886238,-292.18762063,0.00013209,2]
[391092513,1760325934770,225.24,0.00010693,2]
[391092516,1760326097123,-158.20263632,0.00013183,2]
[391092517,1760326100341,-426.25524773,0.00013183,2]
[391092518,1760326102354,-177.70063656,0.00013183,2]
[391092519,1760326103921,-646.65982734,0.00013183,2]
[391092520,1760326108483,-216.16146108,0.00013183,2]
[391092521,1760326109976,-244.11976489,0.00013183,2]
[391092523,1760326126406,-188.3549872,0.00013183,2]
[391092524,1760326129292,-207.81237937,0.00013183,2]
[391092525,1760326141673,-200.0,0.00013125,2]
[391092526,1760326141699,-300.0,0.00013172,2]
[391092527,1760326143210,-255.88023511,0.00013172,2]
[391092528,1760326144757,-194.46217041,0.00013172,2]
[391092529,1760326149557,-253.47309563,0.00013172,2]
[391092530,1760326151619,-311.87619932,0.00013172,2]
[391092531,1760326156021,-630.13829332,0.00013172,2]
[391092532,1760326158275,-302.0,0.00013172,2]
[391092533,1760326160532,-300.0,0.00013172,2]
[391092534,1760326162909,-232.59992373,0.00013172,2]
[391092535,1760326165309,-456.882785,0.00013172,2]
[391092536,1760326167844,-166.63261706,0.00013172,2]
[391092537,1760326187322,-175.02466594,0.00013172,2]
[391092538,1760326190841,-176.1463035,0.00013172,2]
[391092539,1760326195846,-255.95304741,0.00013172,2]
[391092540,1760326197846,-303.20767531,0.00013172,2]
[391092541,1760326216140,-287.09554574,0.00013105,2]
[391092542,1760326219910,-369.79883816,0.00013105,2]
[391092543,1760326222373,-228.95976752,0.00013105,2]
[391092544,1760326224622,-93.54155858,0.00013105,2]
[391092545,1760326224645,-307.4753787,0.00013172,2]
[391092559,1760326231877,-125.89760956,0.00013172,2]
[391092560,1760326231889,-109.67305951,0.00013183,2]
[391092561,1760326231900,-250.0,0.00013244,2]
[391092562,1760326231911,-1200.0,0.00013365,2]
[391092563,1760326231920,-250.0,0.00013368,7]
[391092564,1760326231930,-300.0,0.00013388,2]
[391092565,1760326231940,-666.0,0.00013389,3]
[391092566,1760326231949,-614.42933097,0.00013401,2]
[391092567,1760326231961,-585.57066903,0.00013401,2]
[391092568,1760326231970,-1.02930597,0.00013404,2]
[391092569,1760326231982,-148.97069403,0.00013404,2]
[391092570,1760326231992,-366.4072,0.00013417,2]
[391092571,1760326232002,-250.0,0.00013443,2]
[391092572,1760326232011,-309.59,0.00013551,2]
[391092573,1760326232022,-156.53,0.00013626,2]
[391092574,1760326232032,-323.53146614,0.0001415,2]
[391092575,1760326232042,-162.51712371,0.0001415,2]
[391092576,1760326232053,-169.59506164,0.0001415,2]
[391092577,1760326232064,-203.98154028,0.0001415,2]
[391092578,1760326232075,-166.32491406,0.0001415,2]
[391092579,1760326232090,-335.17965983,0.0001415,2]
[391092580,1760326232100,-200.0,0.00014182,2]
[391092581,1760326232110,-16.82034017,0.0001424,2]
[391092582,1760326232122,-189.81882583,0.0001424,2]
[391092583,1760326232131,-200.0,0.00014241,2]
[391092584,1760326232141,-200.0,0.00014241,2]
[391092586,1760326232151,-55.23573322,0.00014247,2]
[391092588,1760326232167,-879.1401216,0.00014247,2]
[391092591,1760326232178,-2561.09414518,0.00014247,2]
[391092592,1760326232188,-150.0,0.00014248,2]
[391092593,1760326232198,-151.485,0.00014249,2]
[391092595,1760326232207,-1121.41434967,0.00014249,2]
[391092598,1760326232230,-2606.41965033,0.00014249,2]
[391092600,1760326232240,-10905.6492329,0.0001425,2]
[391092602,1760326232252,-79909.33976819,0.0001425,2]
[391092609,1760326237863,-151.0,0.00014246,2]
[391092610,1760326237873,-124.65031058,0.00014247,2]
[391092611,1760326237977,-26.34968942,0.00014247,2]
[391092612,1760326237989,-2190.72310258,0.0001425,2]
[391092613,1760326239821,-1090533.53768489,0.0001425,2]
[391092614,1760326239833,-77473.43099891,0.0001425,2]
[391092615,1760326239845,-467.09059237,0.00014272,2]
[391092616,1760326239855,-500.0,0.00014272,2]
[391092617,1760326239865,-500.0,0.00014272,2]
[391092618,1760326239876,-270.23030595,0.00014272,2]
[391092619,1760326239886,-292.18762063,0.00014272,2]
[391092620,1760326239895,-500.0,0.00014272,2]
[391092621,1760326239910,-262.15852061,0.00014272,2]
[391092622,1760326239929,-460.28122597,0.00014272,2]
[391092623,1760326239938,-335.88267554,0.00014272,2]
[391092624,1760326239947,-207.81237937,0.00014272,2]
[391092625,1760326239958,-500.0,0.00014272,2]
[391092626,1760326239968,-500.0,0.00014272,2]
[391092627,1760326239978,-500.0,0.00014272,2]
[391092628,1760326239988,-431.24699441,0.00014272,2]
[391092629,1760326239999,-302.0,0.00014272,2]
[391092630,1760326240014,-505.65019941,0.00014273,2]
[391092631,1760326240026,-500.0,0.00014273,2]
[391092632,1760326240040,-615.50769708,0.00014273,2]
[391092633,1760326240049,-156.47949308,0.00014273,2]
[391092634,1760326240058,-500.0,0.00014273,2]
[391092635,1760326240068,-500.0,0.00014273,2]
[391092636,1760326240078,-500.0,0.00014273,2]
[391092637,1760326240087,-500.0,0.00014273,2]
[391092638,1760326240097,-500.0,0.00014273,2]
[391092639,1760326240107,-500.0,0.00014273,2]
[391092640,1760326240116,-500.0,0.00014273,2]
[391092641,1760326240125,-500.0,0.00014273,2]
[391092642,1760326240135,-501.89486327,0.00014273,2]
[391092643,1760326240145,-1000.0,0.00014354,2]
[391092644,1760326240154,-250.0,0.00014391,2]
[391092645,1760326240163,-250.0,0.00014416,2]
[391092646,1760326240173,-2582.2,0.0001442,2]
[391092647,1760326240183,-896.0,0.00014424,2]
[391092648,1760326240192,-4300.0114069,0.00014523,2]
[391092649,1760326240201,-195.0,0.0001453,2]
[391092650,1760326240210,-250.0,0.0001453,2]
[391092651,1760326240221,-500.0,0.00014651,2]
[391092652,1760326240231,-166.66,0.00014674,2]
[391092653,1760326240241,-420.0,0.00014676,2]
[391092654,1760326240251,-1063.18991306,0.00014699,2]
[391092655,1760326240260,-1680.0,0.00014701,2]
[391092657,1760326240271,-847.10882333,0.00014758,2]
[391092658,1760326240281,-2500.0,0.000148,2]
[391092659,1760326240290,-155.17195684,0.000148,2]
[391092660,1760326240300,-267.97205602,0.000148,2]
[391092661,1760326240309,-203.98154027,0.000148,2]
[391092662,1760326240318,-1000.0,0.000148,2]
[391092663,1760326240327,-1000.0,0.00014821,2]
[391092664,1760326240336,-1000.0,0.00014821,2]
[391092665,1760326240347,-1000.0,0.00014821,2]
[391092666,1760326240356,-1000.0,0.00014821,2]
[391092667,1760326240366,-271.40570791,0.00014821,2]
[391092668,1760326240376,-751.85710336,0.00014821,2]
[391092669,1760326240385,-500.0,0.00014873,2]
[391092670,1760326240394,-500.0,0.00014873,2]
[391092671,1760326240403,-500.0,0.00014873,2]
[391092672,1760326240412,-560.33339262,0.00014873,2]
[391092673,1760326240421,-500.0,0.00014873,2]
[391092674,1760326240430,-500.25232784,0.00014873,2]
[391092675,1760326240439,-500.44343299,0.00014873,2]
[391092676,1760326240447,-500.11519838,0.00014873,2]
[391092677,1760326240456,-168.19426073,0.00014873,2]
[391092678,1760326240465,-500.58404968,0.00014873,2]
[391092679,1760326240475,-500.0,0.00014873,2]
[391092680,1760326240484,-522.32690033,0.00014873,2]
[391092681,1760326240493,-500.43665943,0.00014873,2]
[391092682,1760326240503,-500.09875659,0.00014873,2]
[391092683,1760326240512,-500.0,0.00014873,2]
[391092684,1760326240521,-500.44756368,0.00014873,2]
[391092685,1760326240530,-500.0,0.00014879,2]
[391092686,1760326240539,-195.08041477,0.00014879,2]
[391092687,1760326240548,-497.8605857,0.00014879,2]
[391092688,1760326240557,-500.0,0.00014879,2]
[391092689,1760326240566,-444.21239318,0.00014879,2]
[391092690,1760326240575,-500.0,0.00014879,2]
[391092691,1760326240584,-500.0,0.00014879,2]
[391092692,1760326240594,-500.0,0.00014879,2]
[391092693,1760326240605,-500.0,0.00014879,2]
[391092694,1760326240614,-286.37236469,0.00014879,2]
[391092695,1760326240623,-430.52319332,0.00014879,2]
[391092696,1760326240634,-500.0,0.00014879,2]
[391092697,1760326240643,-1145405.74813612,0.0001488,2]
[391092698,1760326240758,-3969.64800164,0.0001488,2]
[391092699,1760326240772,-475.76723233,0.0001488,2]
[391092700,1760326241163,-1.6e-07,0.0001488,2]
[391092702,1760326242956,-5780.45072,0.0001488,2]
[391092703,1760326242967,-4165.9,0.0001488,2]
[391092704,1760326243327,-113528.988602,0.0001488,2]
[391092706,1760326245935,-9024.77134683,0.0001488,2]
[391092707,1760326246203,-223592.32457697,0.0001488,2]
[391092712,1760326514971,159.0,0.000273,120]
[391092713,1760326521380,159.0,0.000273,120]
[391092714,1760326526652,159.0,0.000273,120]
[391092717,1760326630637,150.0,0.00027397,120]
[391092718,1760326630819,150.0,0.00027397,120]
[391092719,1760326630970,221.21484496,0.00027397,120]
[391092722,1760326818636,4000.0,0.00027397,120]
[391092724,1760326990214,150.0,0.00027397,120]
[391092725,1760326990318,150.0,0.00027397,120]
[391092726,1760326991206,200.0,0.00027397,120]
[391092727,1760327002540,2573.957076,0.00027397,120]
[391092739,1760327432306,-1500.0,0.00013572,2]
[391092741,1760327432316,-2000.0,0.0001359,2]
[391092743,1760327432325,-250.0,0.00013607,2]
[391092745,1760327432334,-2000.0,0.00013632,2]
[391092747,1760327432343,-2751.0,0.00013642,2]
[391092749,1760327432353,-250.0,0.00013652,2]
[391092751,1760327432362,-300.0,0.00013688,2]
[391092753,1760327432372,-300.0,0.00013688,2]
[391092755,1760327432381,-1200.0,0.00013688,2]
[391092757,1760327432391,-1200.0,0.00013689,2]
[391092759,1760327432400,-398.34,0.00013699,2]
[391092761,1760327432412,-300.0,0.00014387,2]
[391092763,1760327432422,-1978.0,0.00014388,2]
[391092765,1760327432431,-305.90757056,0.00014388,2]
[391092767,1760327432440,-150.0,0.0001467,2]
[391092769,1760327432449,-200.0,0.00014671,2]
[391092771,1760327432458,-151.0,0.00014671,2]
[391092773,1760327432468,-151.0,0.00014671,2]
[391092775,1760327432478,-168.84223589,0.00014671,2]
[391092777,1760327432487,-151.0,0.00014671,2]
[391092781,1760327432496,-151.0,0.00014671,2]
[391092784,1760327432518,-151.0,0.00014671,2]
[391092787,1760327432531,-151.0,0.00014671,2]
[391092789,1760327432546,-151.0,0.00014671,2]
[391092793,1760327432561,-151.0,0.00014671,2]
[391092796,1760327432578,-151.0,0.00014671,2]
[391092798,1760327432593,-151.0,0.00014671,2]
[391092801,1760327432606,-151.0,0.00014671,2]
[391092803,1760327432621,-151.0,0.00014671,2]
[391092806,1760327432637,-151.0,0.00014671,2]
[391092809,1760327432653,-151.0,0.00014671,2]
[391092812,1760327432668,-151.0,0.00014671,2]
[391092814,1760327432684,-151.0,0.00014671,2]
[391092817,1760327432699,-151.0,0.00014671,2]
[391092820,1760327432715,-151.0,0.00014671,2]
[391092822,1760327432730,-151.0,0.00014671,2]
[391092825,1760327432745,-151.0,0.00014671,2]
[391092827,1760327432759,-151.0,0.00014671,2]
[391092830,1760327432771,-151.0,0.00014671,2]
[391092833,1760327432787,-151.0,0.00014671,2]
[391092835,1760327432800,-151.0,0.00014671,2]
[391092837,1760327432812,-151.0,0.00014671,2]
[391092840,1760327432827,-151.0,0.00014671,2]
[391092842,1760327432840,-151.0,0.00014671,2]
[391092843,1760327432851,-151.0,0.00014671,2]
[391092844,1760327432871,-151.0,0.00014671,2]
[391092845,1760327432884,-151.0,0.00014671,2]
[391092846,1760327432896,-151.0,0.00014671,2]
[391092847,1760327432910,-12.65702946,0.00014671,2]
[391092848,1760327432927,-138.34297054,0.00014671,2]
[391092849,1760327432939,-151.0,0.00014671,2]
[391092850,1760327432953,-151.0,0.00014671,2]
[391092851,1760327432966,-215.12912554,0.00014671,2]
[391092853,1760327432979,-207.4,0.00014671,2]
[391092855,1760327432995,-200.0,0.00014671,2]
[391092858,1760327433009,-500.0,0.00014671,2]
[391092860,1760327433022,-283.81754036,0.00014671,2]
[391092863,1760327433035,-340.5774,0.0001468,2]
[391092865,1760327433048,-3341.2821,0.0001468,2]
[391092867,1760327433062,-233.2802,0.0001468,2]
[391092870,1760327433077,-1000.0,0.0001468,2]
[391092872,1760327433091,-1350.00440342,0.0001468,2]
[391092875,1760327433103,-2500.0,0.0001468,2]
[391092877,1760327433118,-365.46,0.000147,2]
[391092880,1760327433131,-150.94,0.000147,2]
[391092882,1760327433144,-474.4,0.000147,2]
[391092885,1760327433157,-150.92,0.000147,2]
[391092887,1760327433171,-1350.0044034,0.00014747,2]
[391092889,1760327433184,-2500.0,0.00014747,2]
[391092892,1760327433197,-200.0,0.0001476,2]
[391092894,1760327433210,-200.0,0.00014761,2]
[391092897,1760327433224,-2500.0,0.00014779,2]
[391092899,1760327433237,-214.58299938,0.00014779,2]
[391092902,1760327433251,-168.89601021,0.00014779,2]
[391092904,1760327433265,-164.85127188,0.00014779,2]
[391092907,1760327433279,-1510.634,0.0001478,2]
[391092909,1760327433293,-1000.0,0.0001478,2]
[391092912,1760327433306,-192465.6248,0.0001478,2]
[391092915,1760327433321,-399.02881381,0.0001478,2]
[391092917,1760327433335,-155.17195684,0.0001478,2]
[391092920,1760327433349,-515.79658415,0.0001478,2]
[391092922,1760327433362,-889.25951325,0.00014783,2]
[391092924,1760327433375,-546.15,0.000148,2]
[391092927,1760327433388,-808.18,0.000148,2]
[391092929,1760327433401,-810.77,0.000148,2]
[391092932,1760327433414,-166.72,0.000148,2]
[391092934,1760327433428,-159.0,0.000148,2]
[391092936,1760327433442,-159.0,0.000148,2]
[391092939,1760327433455,-515.79658414,0.00014805,2]
[391092941,1760327433468,-1350.0044034,0.00014814,2]
[391092944,1760327433482,-529.2416,0.00014849,2]
[391092946,1760327433495,-1980.0,0.00014869,2]
[391092949,1760327433508,-367.34793991,0.0001487,2]
[391092951,1760327433520,-500.0,0.00014873,2]
[391092954,1760327433534,-500.0,0.00014873,2]
[391092956,1760327433547,-502.28864495,0.00014873,2]
[391092958,1760327433560,-500.0,0.00014873,2]
[391092961,1760327433574,-500.0,0.00014873,2]
[391092963,1760327433587,-500.0,0.00014873,2]
[391092966,1760327433601,-271.40570791,0.00014873,2]
[391092968,1760327433614,-500.0,0.00014873,2]
[391092971,1760327433627,-502.58233375,0.00014873,2]
[391092973,1760327433639,-500.0,0.00014873,2]
[391092976,1760327433653,-503.22893055,0.00014873,2]
[391092978,1760327433666,-501.01054335,0.00014873,2]
[391092980,1760327433686,-501.92885689,0.00014873,2]
[391092983,1760327433699,-151.0,0.00014876,2]
[391092985,1760327433712,-336.14,0.00014877,2]
[391092988,1760327433725,-151.0,0.00014877,2]
[391092990,1760327433738,-797.3924348,0.00014878,2]
[391092993,1760327433751,-228.9597676,0.00014879,2]
[391092995,1760327433764,-170815.5944712,0.00014879,2]
[391092998,1760327433777,-3758.7658905,0.00014879,2]
[391093000,1760327433790,-1365.1026525,0.00014879,2]
[391093002,1760327433803,-176768.2414475,0.00014879,2]
[391093005,1760327433817,-348.50240999,0.00014879,2]
[391093007,1760327433830,-550.46065528,0.00014879,2]
[391093010,1760327433843,-500.0,0.00014879,2]
[391093012,1760327433856,-500.0,0.00014879,2]
[391093014,1760327433870,-160.94867522,0.00014879,2]
[391093017,1760327433883,-551.36623532,0.00014879,2]
[391093019,1760327433896,-500.0,0.00014879,2]
[391093021,1760327433911,-500.0,0.00014879,2]
[391093024,1760327433924,-279.156958,0.00014879,2]
[391093026,1760327433937,-300.0,0.00014879,2]
[391093029,1760327433950,-150.0,0.00014879,2]
[391093031,1760327433963,-300.0,0.00014879,2]
[391093033,1760327433975,-2691.0,0.0001488,2]
[391093036,1760327433988,-418820.26233528,0.0001488,2]
[391093144,1760327438260,-919.06551106,0.00014779,2]
[391093145,1760327438271,-515.79658414,0.0001483,2]
[391093146,1760327438281,-151.0,0.00014876,2]
[391093147,1760327438290,-151.0,0.00014877,2]
[391093148,1760327438300,-7713.47045143,0.0001488,2]
[391093149,1760327438333,-278.29072589,0.0001488,2]
[391093190,1760327440055,-57758.39187609,0.0001488,2]
[391093191,1760327440111,-65854.29466939,0.0001488,2]
[391093192,1760327440122,-112283.40019768,0.0001488,2]
[391093193,1760327440132,-1478.909,0.0001488,2]
[391093194,1760327440142,-1000.0,0.0001488,2]
[391093195,1760327440151,-880.687,0.0001488,2]
[391093196,1760327440162,-1221.46515,0.0001488,2]
[391093197,1760327440172,-1350.0044034,0.00014881,2]
[391093198,1760327440182,-178.64803734,0.000149,2]
[391093199,1760327440191,-204.81217372,0.000149,2]
[391093200,1760327440204,-189.56371756,0.000149,2]
[391093201,1760327440214,-300.0,0.0001493,2]
[391093202,1760327440224,-300.0,0.0001493,2]
[391093203,1760327440233,-195.0,0.0001493,2]
[391093204,1760327440243,-300.0,0.0001493,2]
[391093205,1760327440253,-250.0,0.0001493,2]
[391093206,1760327440263,-267.92637667,0.0001493,2]
[391093207,1760327440272,-300.0,0.0001493,2]
[391093208,1760327440282,-300.0,0.0001493,2]
[391093209,1760327440292,-300.0,0.0001493,2]
[391093210,1760327440302,-2000.0,0.0001493,2]
[391093211,1760327440311,-2500.0,0.0001493,2]
[391093212,1760327440321,-2500.0,0.0001493,2]
[391093213,1760327440331,-2500.0,0.0001493,2]
[391093214,1760327440340,-2500.0,0.0001493,2]
[391093215,1760327440350,-2531.47579326,0.0001493,2]
[391093216,1760327440360,-195.0,0.0001493,2]
[391093217,1760327440371,-300.0,0.0001493,2]
[391093218,1760327440382,-313.46581895,0.0001493,2]
[391093219,1760327440392,-2000.0,0.0001493,2]
[391093220,1760327440404,-1350.0044034,0.00014948,2]
[391093221,1760327440415,-500.67213646,0.00014973,2]
[391093222,1760327440425,-500.0,0.00014973,2]
[391093223,1760327440435,-500.0,0.00014973,2]
[391093224,1760327440444,-500.0,0.00014973,2]
[391093225,1760327440453,-500.0,0.00014973,2]
[391093226,1760327440463,-500.0,0.00014973,2]
[391093227,1760327440473,-500.40266672,0.00014973,2]
[391093228,1760327440484,-500.33943616,0.00014973,2]
[391093229,1760327440494,-206.17091298,0.00014973,2]
[391093230,1760327440503,-234.40725766,0.00014973,2]
[391093231,1760327440513,-500.0,0.00014973,2]
[391093232,1760327440523,-500.32238994,0.00014973,2]
[391093233,1760327440533,-500.0,0.00014973,2]
[391093234,1760327440543,-500.0,0.00014973,2]
[391093235,1760327440553,-500.0,0.00014973,2]
[391093237,1760327440564,-500.0,0.00014973,2]
[391093238,1760327440574,-500.44343299,0.00014973,2]
[391093239,1760327440583,-500.11519838,0.00014973,2]
[391093240,1760327440595,-500.25232784,0.00014973,2]
[391093241,1760327440604,-522.32690033,0.00014973,2]
[391093242,1760327440614,-500.43665943,0.00014973,2]
[391093243,1760327440623,-500.09875659,0.00014973,2]
[391093244,1760327440633,-500.44756368,0.00014973,2]
[391093245,1760327440642,-500.0,0.00014973,2]
[391093246,1760327440651,-202.98,0.0001498,2]
[391093247,1760327440661,-367.34793991,0.0001499,2]
[391093248,1760327440670,-151.0,0.00014997,2]
[391093249,1760327440678,-279.90735855,0.00014997,2]
[391093250,1760327440687,-300.0,0.00014999,2]
[391093251,1760327440696,-584530.90031122,0.00015,2]
[391093252,1760327440705,-362020.19000424,0.00015,2]
[391093253,1760327440736,-2028.6,0.00015,2]
[391093258,1760327443487,-172.14,0.00014175,2]
[391093259,1760327443497,-300.0,0.00014998,2]
[391093260,1760327443507,-6142.96245178,0.00015,2]
[391093261,1760327443543,-40.97,0.00015,2]
[391093264,1760327446343,-352.17713,0.00014861,2]
[391093276,1760328064400,334.0,0.00027397,120]
[391093280,1760328264356,204.5,6.788e-05,2]
[391093281,1760328264543,204.5,7.146e-05,2]
[391093282,1760328264815,204.5,7.503e-05,2]
[391093283,1760328265016,204.5,7.86e-05,2]
[391093284,1760328265212,204.5,8.218e-05,2]
[391093285,1760328265434,204.5,8.575e-05,2]
[391093286,1760328265916,204.5,8.932e-05,2]
[391093287,1760328266037,204.5,9.289e-05,2]
[391093288,1760328266890,204.5,9.647e-05,2]
[391093289,1760328266943,204.5,0.00010004,2]
[391093290,1760328267004,204.5,0.00010361,2]
[391093291,1760328267048,204.5,0.00010719,2]
[391093292,1760328267117,204.5,0.00011076,2]
[391093293,1760328267276,204.5,0.00011433,2]
[391093294,1760328267462,204.5,0.0001179,2]
[391093295,1760328267655,204.5,0.00012148,2]
[391093296,1760328270645,302.0,0.00027397,120]
[391093297,1760328271565,-204.5,0.00012505,2]
[391093298,1760328271587,-97.50883832,0.00012862,2]
[391093299,1760328277644,-106.99116168,0.00012862,2]
[391093300,1760328277666,-171.47077641,0.0001322,2]
[391093303,1760328393356,667.58238595,0.00027,120]
[391093306,1760328556193,-33.02922359,0.0001322,2]
[391093307,1760328556215,-228.36034156,0.00013262,2]
[391093308,1760328558302,-250.0,0.00013262,2]
[391093309,1760328564231,-350.61034535,0.00013262,2]
[391093310,1760328567907,-183.5548721,0.00013262,2]
[391093312,1760328631381,-309.84282632,0.00013262,2]
[391093315,1760328632254,-677.63161467,0.00013262,2]
[391093316,1760328632264,-250.0,0.00013305,2]
[391093317,1760328632273,-250.0,0.0001339,2]
[391093318,1760328632282,-2000.0,0.00013404,2]
[391093319,1760328632293,-500.0,0.00013552,2]
[391093320,1760328632305,-270.55,0.00013553,2]
[391093321,1760328632315,-204.5,0.00013577,2]
[391093322,1760328632325,-1036.8,0.00013614,2]
[391093323,1760328632335,-610.0,0.00013699,2]
[391093324,1760328632346,-1000.0,0.00013957,2]
[391093325,1760328632356,-300.0,0.00013959,2]
[391093326,1760328632367,-300.0,0.00013959,2]
[391093327,1760328632378,-1200.0,0.00013959,2]
[391093328,1760328632388,-510.0,0.00013964,2]
[391093329,1760328632398,-150.0,0.00014209,2]
[391093330,1760328632407,-303.96839378,0.0001421,2]
[391093331,1760328632416,-9211.34798985,0.0001421,2]
[391093332,1760328632425,-151.0,0.0001421,2]
[391093333,1760328632434,-267.46074303,0.0001421,2]
[391093334,1760328632443,-151.0,0.0001421,2]
[391093335,1760328632452,-151.0,0.0001421,2]
[391093336,1760328632462,-200.43660855,0.0001421,2]
[391093337,1760328632471,-668.65185757,0.0001421,2]
[391093338,1760328632481,-9552.16786547,0.00014265,2]
[391093339,1760328632490,-9905.5980765,0.0001432,2]
[391093340,1760328632499,-2562.88659028,0.00014375,2]
[391093341,1760328632513,-1702.70154033,0.00014375,2]
[391093342,1760328632524,-1223.29132686,0.00014375,2]
[391093343,1760328632535,-1290.06170781,0.00014375,2]
[391093344,1760328632594,-1133.93352267,0.00014375,2]
[391093345,1760328632629,-294.84302077,0.00014375,2]
[391093347,1760328632640,-1734.97613003,0.00014375,2]
[391093349,1760328632652,-329.41136658,0.00014375,2]
[391093351,1760328632663,-1573.32554608,0.0001443,2]
[391093354,1760328632674,-3780.00000008,0.0001443,2]
[391093356,1760328632686,-3914.31136276,0.0001443,2]
[391093422,1760328638203,-1384.536189,0.0001443,2]
[391093423,1760328638212,-11046.30350255,0.00014485,2]
[391093424,1760328638222,-1962.0,0.00014539,2]
[391093425,1760328638231,-11455.01673214,0.0001454,2]
[391093426,1760328638242,-300.0,0.00014542,2]
[391093427,1760328638251,-300.0,0.00014542,2]
[391093428,1760328638260,-300.0,0.00014542,2]